bitfinex/quotes_BTCUSD_20251117
["timestamp","ask_amount","ask_price","bid_price","bid_amount"]
[1763353093956,0.38386994,95271.0,95270.0,0.001389]
[1763353094543,0.40035324,95271.0,95270.0,0.001389]
[1763353094728,0.38386994,95271.0,95270.0,0.001389]
[1763353095590,0.55226994,95271.0,95270.0,0.001389]
[1763353097571,0.38386994,95271.0,95270.0,0.001389]
[1763353097772,0.40035319,95271.0,95270.0,0.001389]
[1763353098895,0.41010284,95271.0,95270.0,0.001389]
[1763353099938,0.41110284,95271.0,95270.0,0.001389]
[1763353100623,1.06696678,95270.0,95251.0,0.002]
[1763353100824,0.02812,95261.0,95251.0,0.002]
[1763353100984,0.04762593,95261.0,95251.0,0.002]
[1763353101194,0.07129593,95261.0,95251.0,0.002]
[1763353101608,0.39429593,95261.0,95251.0,0.002]
[1763353101815,0.40404909,95261.0,95251.0,0.002]
[1763353102438,0.44746783,95261.0,95251.0,0.002]
[1763353102751,0.36641874,95260.0,95251.0,0.002]
[1763353102909,0.02812,95252.0,95251.0,0.002]
[1763353103108,0.063117,95252.0,95251.0,0.002]
[1763353103347,0.086787,95252.0,95240.0,0.0004]
[1763353103509,0.01645,95241.0,95240.0,0.0004]
[1763353103710,0.04570909,95241.0,95240.0,0.0004]
[1763353103948,0.06937909,95241.0,95240.0,0.0004]
[1763353104128,0.44273574,95241.0,95240.0,0.0004]
[1763353104651,0.44317947,95241.0,95240.0,0.0004]
[1763353105172,0.44416998,95241.0,95240.0,0.0004]
[1763353105477,0.36641874,95240.0,95210.0,0.0004]
[1763353105618,0.0256,95231.0,95210.0,0.0004]
[1763353105821,0.05484368,95231.0,95210.0,0.0004]
[1763353106072,0.07851368,95231.0,95210.0,0.0004]
[1763353106272,0.06877593,95231.0,95210.0,0.0004]
[1763353106933,0.07850858,95231.0,95210.0,0.0004]
[1763353107135,0.08635944,95231.0,95210.0,0.0004]
[1763353107335,0.07762679,95231.0,95210.0,0.0004]
[1763353107558,0.07662679,95231.0,95210.0,0.0004]
[1763353107968,0.08735378,95231.0,95210.0,0.0004]
[1763353108208,0.42784375,95231.0,95210.0,0.0004]
[1763353108384,0.40162679,95231.0,95210.0,0.0004]
[1763353108785,0.39377593,95231.0,95210.0,0.0004]
[1763353109485,0.39798857,95231.0,95210.0,0.0004]
[1763353109891,0.36641874,95230.0,95210.0,0.0004]
[1763353110100,0.02812,95212.0,95210.0,0.0004]
[1763353110294,0.04762593,95212.0,95210.0,0.0004]
[1763353110524,0.07129593,95212.0,95210.0,0.0004]
[1763353110826,0.07842552,95212.0,95210.0,0.0004]
[1763353110976,0.08263877,95212.0,95210.0,0.0004]
[1763353111211,0.08308223,95212.0,95210.0,0.0004]
[1763353111411,0.09957297,95212.0,95210.0,0.0004]
[1763353111732,0.09244338,95212.0,95210.0,0.0004]
[1763353112162,0.09244338,95212.0,95211.0,0.00362234]
[1763353112498,0.07293745,95212.0,95211.0,0.00362234]
[1763353113873,0.0687242,95212.0,95211.0,0.00362234]
[1763353114205,0.0450542,95212.0,95211.0,0.00362234]
[1763353114605,0.0687242,95212.0,95211.0,0.00362234]
[1763353115185,0.0286042,95212.0,95211.0,0.00362234]
[1763353115597,0.5601242,95212.0,95211.0,0.00362234]
[1763353115770,0.60609992,95212.0,95211.0,0.00362234]
[1763353117416,0.52189992,95212.0,95211.0,0.00362234]
[1763353117620,0.43769992,95212.0,95211.0,0.00362234]
[1763353117841,0.3680542,95212.0,95211.0,0.00362234]
[1763353118245,0.3917242,95212.0,95211.0,0.00362234]
[1763353122470,0.41114196,95212.0,95211.0,0.00362234]
[1763353122874,0.41214196,95212.0,95211.0,0.00362234]
[1763353123265,0.41114196,95212.0,95211.0,0.00362234]
[1763353123460,0.45447616,95212.0,95211.0,0.00362234]
[1763353123776,0.43698542,95212.0,95211.0,0.00362234]
[1763353124191,0.43898542,95212.0,95211.0,0.00362234]
[1763353125602,0.16010432,95212.0,95211.0,0.00362234]
[1763353125807,0.24444432,95212.0,95211.0,0.00362234]
[1763353125959,0.47999122,95212.0,95211.0,0.00362234]
[1763353126144,0.47899122,95212.0,95211.0,0.00362234]
[1763353126796,0.47799122,95212.0,95211.0,0.00362234]
[1763353126993,0.06782459,95212.0,95211.0,0.00362234]
[1763353127391,0.08727636,95212.0,95211.0,0.00362234]
[1763353127891,0.06450636,95212.0,95211.0,0.00362234]
[1763353128277,0.03638636,95212.0,95211.0,0.00362234]
[1763353130006,0.03638636,95212.0,95211.0,0.04326234]
[1763353130162,0.01693459,95212.0,95211.0,0.04326234]
[1763353130362,0.00044346,95212.0,95211.0,0.04326234]
[1763353130602,0.00044346,95212.0,95211.0,0.00362234]
[1763353131650,0.01994583,95212.0,95211.0,0.00362234]
[1763353133515,0.03643542,95212.0,95211.0,0.00362234]
[1763353134137,0.08045596,95212.0,95211.0,0.00362234]
[1763353134458,0.05176542,95212.0,95211.0,0.00362234]
[1763353135439,0.20491542,95212.0,95211.0,0.00362234]
[1763353136044,0.54324542,95212.0,95211.0,0.00362234]
[1763353136472,0.3747818,95212.0,95211.0,0.00362234]
[1763353138805,0.0364518,95212.0,95211.0,0.04326234]
[1763353138979,0.01693305,95212.0,95211.0,0.04326234]
[1763353139359,0.00044346,95212.0,95211.0,0.04326234]
[1763353140790,0.00044346,95212.0,95211.0,0.04426234]
[1763353140998,0.00044346,95212.0,95211.0,0.04321234]
[1763353141196,0.00044346,95212.0,95211.0,0.04221234]
[1763353141606,0.00044346,95212.0,95211.0,0.04321234]
[1763353142692,0.0169314,95212.0,95211.0,0.04321234]
[1763353143095,0.0169314,95212.0,95211.0,0.00357234]
[1763353143397,0.0322614,95212.0,95211.0,0.00357234]
[1763353143605,0.0550314,95212.0,95211.0,0.00357234]
[1763353143757,0.08119926,95212.0,95211.0,0.00257234]
[1763353143918,0.07453512,95212.0,95211.0,0.00257234]
[1763353144364,0.07453512,95212.0,95211.0,0.00357234]
[1763353144878,0.07453512,95212.0,95211.0,0.00257234]
[1763353145084,0.07453512,95212.0,95211.0,0.00357234]
[1763353145583,0.56601512,95212.0,95211.0,0.00357234]
[1763353146344,0.62377763,95212.0,95211.0,0.00357234]
[1763353146591,0.62377763,95212.0,95211.0,0.00257234]
[1763353147040,0.45529763,95212.0,95211.0,0.00257234]
[1763353147369,0.48752277,95212.0,95211.0,0.00257234]
[1763353147579,0.49173586,95212.0,95211.0,0.00257234]
[1763353150031,0.49173586,95212.0,95186.0,9e-05]
[1763353150032,0.323,95211.0,95186.0,9e-05]
[1763353150233,0.02694,95191.0,95186.0,9e-05]
[1763353150443,0.04644372,95191.0,95186.0,9e-05]
[1763353150662,0.06921372,95191.0,95186.0,9e-05]
[1763353150864,0.42381367,95191.0,95186.0,9e-05]
[1763353151026,0.47676977,95191.0,95186.0,9e-05]
[1763353151226,0.4343884,95191.0,95186.0,9e-05]
[1763353151429,0.41488468,95191.0,95186.0,9e-05]
[1763353151630,0.03159995,95191.0,95190.0,0.04004]
[1763353152012,0.03159995,95191.0,95190.0,0.0004]
[1763353152603,0.03159995,95191.0,95190.0,0.0014]
[1763353152803,0.03159995,95191.0,95190.0,0.01797]
[1763353153022,0.04809479,95191.0,95190.0,0.0014]
[1763353153516,0.03159995,95191.0,95190.0,0.0014]
[1763353153684,0.03159995,95191.0,95190.0,0.0024]
[1763353154107,0.03159995,95191.0,95190.0,0.0024]
[1763353155635,0.20007995,95191.0,95190.0,0.0024]
[1763353156046,0.20007995,95191.0,95190.0,0.00297811]
[1763353156467,0.21657489,95191.0,95190.0,0.00297811]
[1763353156673,0.24272183,95191.0,95190.0,0.00297811]
[1763353156810,0.01649494,95191.0,95190.0,0.04185811]
[1763353159576,0.01649494,95191.0,95190.0,0.00297811]
[1763353160181,0.05602494,95191.0,95190.0,0.00297811]
[1763353161226,0.03296494,95191.0,95190.0,0.00297811]
[1763353161487,0.03296494,95191.0,95190.0,0.00097811]
[1763353161855,0.06596,95191.0,95190.0,0.00197811]
[1763353162064,0.06596,95191.0,95190.0,0.00097811]
[1763353162455,0.05602494,95191.0,95190.0,0.00097811]
[1763353165733,0.44020494,95191.0,95190.0,0.00097811]
[1763353165870,0.46326494,95191.0,95190.0,0.00097811]
[1763353168191,0.37902494,95191.0,95190.0,0.00097811]
[1763353168782,0.33949494,95191.0,95190.0,0.00097811]
[1763353169191,0.35596494,95191.0,95190.0,0.00097811]
[1763353169427,0.36744494,95191.0,95190.0,0.00097811]
[1763353169631,0.35097494,95191.0,95190.0,0.00097811]
[1763353170251,0.35097494,95191.0,95190.0,0.00197811]
[1763353170448,0.02797494,95191.0,95190.0,0.01776811]
[1763353170651,0.02797494,95191.0,95190.0,0.04089811]
[1763353170827,0.01649494,95191.0,95190.0,0.14189811]
[1763353171027,0.03159017,95204.0,95191.0,0.04341874]
[1763353171227,0.00044346,95212.0,95196.0,0.09406207]
[1763353171228,0.01649336,95200.0,95196.0,0.09406207]
[1763353171579,0.00044346,95212.0,95211.0,0.02727]
[1763353171915,0.00044346,95212.0,95211.0,0.0504]
[1763353173936,0.01892741,95229.0,95228.0,0.02177]
[1763353174128,0.01892741,95229.0,95228.0,0.04503276]
[1763353174329,0.01037405,95238.0,95228.0,0.04503276]
[1763353174632,0.323,95239.0,95229.0,0.09406207]
[1763353174865,0.01649079,95236.0,95229.0,0.09406207]
[1763353175578,0.16848,95235.0,95229.0,0.09406207]
[1763353175969,0.323,95234.0,95229.0,0.09406207]
[1763353177496,0.40724,95235.0,95229.0,0.09406207]
[1763353179330,0.323,95235.0,95229.0,0.09406207]
[1763353181825,0.01647,95230.0,95228.0,0.00013276]
[1763353182033,0.01647,95229.0,95228.0,0.00013276]
[1763353182450,0.03953,95229.0,95228.0,0.00013276]
[1763353182658,0.05081,95229.0,95228.0,0.00013276]
[1763353183764,0.08912765,95229.0,95228.0,0.00013276]
[1763353185091,0.08239757,95229.0,95228.0,0.00013276]
[1763353185533,0.57379757,95229.0,95228.0,0.00013276]
[1763353187345,0.40539757,95229.0,95228.0,0.00013276]
[1763353187558,0.323,95211.0,95190.0,0.0004]
[1763353187778,0.02713,95203.0,95190.0,0.0004]
[1763353188212,0.0550628,95203.0,95190.0,0.0004]
[1763353188428,0.0613458,95203.0,95190.0,0.0004]
[1763353189520,0.0550628,95203.0,95190.0,0.0004]
[1763353190622,0.07450969,95203.0,95190.0,0.0004]
[1763353191505,0.0550628,95203.0,95190.0,0.0004]
[1763353192739,0.323,95199.0,95190.0,0.0004]
[1763353192884,0.01585,95191.0,95190.0,0.0004]
[1763353193086,0.03957,95191.0,95190.0,0.0004]
[1763353194376,0.05900855,95191.0,95190.0,0.0004]
[1763353195412,0.55048855,95191.0,95190.0,0.0004]
[1763353196523,0.55047605,95191.0,95190.0,0.0004]
[1763353196698,0.61589059,95191.0,95190.0,0.0004]
[1763353196905,0.61589059,95191.0,95170.0,0.0004]
[1763353196906,0.01585,95187.0,95170.0,0.0004]
[1763353197101,0.02032,95172.0,95170.0,0.0004]
[1763353197302,0.04404,95172.0,95170.0,0.0004]
[1763353197835,0.01692,95172.0,95170.0,0.0004]
[1763353198036,0.05649,95172.0,95170.0,0.0004]
[1763353198365,0.07307239,95172.0,95170.0,0.0004]
[1763353198737,0.05657374,95172.0,95171.0,0.00285299]
[1763353199149,0.01700374,95172.0,95171.0,0.00285299]
[1763353199306,0.01253374,95172.0,95171.0,0.00285299]
[1763353200924,0.01253374,95172.0,95171.0,0.04102299]
[1763353201176,0.01198,95210.0,95200.0,0.09406207]
[1763353201378,0.3628875,95210.0,95200.0,0.09406207]
[1763353201534,0.02372,95209.0,95201.0,0.01245]
[1763353201734,0.01649422,95208.0,95201.0,0.01245]
[1763353202337,0.01649422,95208.0,95200.0,0.09406207]
[1763353204344,0.01585,95201.0,95186.0,0.01245]
[1763353204559,0.42241017,95207.0,95200.0,0.09406207]
[1763353204560,0.39869017,95207.0,95200.0,0.09406207]
[1763353204763,0.323,95207.0,95200.0,0.09406207]
[1763353205397,0.08424,95206.0,95200.0,0.09406207]
[1763353205606,0.49148,95206.0,95200.0,0.09406207]
[1763353206125,0.40724,95206.0,95205.0,0.01509]
[1763353206278,0.49148,95206.0,95205.0,0.01509]
[1763353207640,0.33949422,95208.0,95200.0,0.09506207]
[1763353207854,0.33949422,95208.0,95200.0,0.09406207]
[1763353208251,0.33949422,95208.0,95205.0,0.001]
[1763353208799,0.01649422,95208.0,95200.0,0.09406207]
[1763353209907,0.01649422,95208.0,95207.0,0.01509]
[1763353210383,0.00013324,95210.0,95207.0,0.01509]
[1763353211182,0.00013324,95210.0,95207.0,0.01609]
[1763353211358,0.00013324,95210.0,95209.0,0.01509]
[1763353211700,0.00013324,95210.0,95200.0,0.10406206]
[1763353211937,0.00013324,95210.0,95207.0,0.001]
[1763353212750,0.00013324,95210.0,95209.0,0.01509]
[1763353212954,0.00013324,95210.0,95209.0,0.11509]
[1763353213129,0.00013324,95210.0,95209.0,0.18158874]
[1763353213531,0.35077426,95250.0,95221.0,0.04341874]
[1763353213868,0.35089088,95250.0,95249.0,0.09406207]
[1763353214090,0.00011662,95250.0,95249.0,0.09406207]
[1763353214634,0.01596662,95250.0,95234.0,0.09406207]
[1763353214857,0.01596662,95250.0,95249.0,0.09406207]
[1763353215077,0.00011662,95250.0,95249.0,0.09406207]
[1763353215583,0.49159662,95250.0,95249.0,0.09406207]
[1763353215796,0.49159662,95250.0,95228.0,0.01232]
[1763353215797,0.323,95249.0,95222.0,0.10625207]
[1763353216004,0.323,95231.0,95217.0,0.01157]
[1763353216209,0.33492,95223.0,95220.0,0.09406207]
[1763353216659,0.323,95223.0,95220.0,0.09406207]
[1763353217275,0.01192,95227.0,95220.0,0.09406207]
[1763353217481,0.01192,95227.0,95221.0,0.09406207]
[1763353218115,0.323,95229.0,95221.0,0.09406207]
[1763353219705,0.01534,95222.0,95206.0,0.01194]
[1763353219906,0.33471,95215.0,95212.0,0.1]
[1763353220187,0.33471,95215.0,95206.0,0.01194]
[1763353220586,0.33471,95215.0,95198.0,0.02342]
[1763353220587,0.033471,95214.0,95198.0,0.02342]
[1763353220792,0.323,95209.0,95190.0,0.00999999]
[1763353221017,0.323,95209.0,95208.0,0.09406207]
[1763353221189,0.323,95209.0,95208.0,0.10987207]
[1763353221394,0.323,95209.0,95208.0,0.13329207]
[1763353221831,0.323,95219.0,95208.0,0.10987207]
[1763353222489,0.323,95219.0,95208.0,0.09406207]
[1763353222490,0.34660418,95219.0,95208.0,0.09406207]
[1763353222629,0.323,95219.0,95208.0,0.09406207]
[1763353223674,0.323,95219.0,95208.0,0.09606207]
[1763353223978,0.323,95219.0,95208.0,0.09406207]
[1763353225496,0.323,95217.0,95208.0,0.09406207]
[1763353226838,0.00626,95209.0,95208.0,0.09406207]
[1763353227040,0.00626,95212.0,95199.0,0.01201346]
[1763353227256,0.00626,95212.0,95211.0,0.09406207]
[1763353228326,0.04598,95212.0,95199.0,0.01201346]
[1763353228530,0.04598,95212.0,95210.0,0.09406207]
[1763353228908,0.01534,95211.0,95210.0,0.09406207]
[1763353229715,0.03972,95211.0,95210.0,0.09406207]
[1763353230108,0.03972,95211.0,95210.0,0.001]
[1763353231082,0.03972,95211.0,95199.0,0.00044346]
[1763353231298,0.03972,95211.0,95207.0,0.09406207]
[1763353231503,0.35077426,95220.0,95207.0,0.09406207]
[1763353231504,0.323,95208.0,95207.0,0.09406207]
[1763353232255,0.33949312,95208.0,95207.0,0.09406207]
[1763353232578,0.01171,95217.0,95207.0,0.09406207]
[1763353232880,0.01952377,95216.0,95207.0,0.09406207]
[1763353233092,0.01952377,95215.0,95207.0,0.09406207]
[1763353233343,0.01952377,95214.0,95207.0,0.09406207]
[1763353233563,0.01171,95217.0,95207.0,0.09506207]
[1763353233779,0.019525,95216.0,95207.0,0.09506207]
[1763353233964,0.35077426,95230.0,95216.0,0.02775]
[1763353234202,0.37030352,95226.0,95223.0,0.09406207]
[1763353234425,0.34252926,95225.0,95223.0,0.09406207]
[1763353234656,0.01952926,95224.0,95223.0,0.09406207]
[1763353234867,0.02853,95231.0,95216.0,0.01194]
[1763353235084,0.00415,95231.0,95230.0,0.09406207]
[1763353235294,0.33471,95239.0,95230.0,0.09406207]
[1763353235507,0.01649067,95231.0,95230.0,0.09406207]
[1763353236795,0.01649067,95231.0,95200.0,0.01194]
[1763353236796,0.05621067,95231.0,95200.0,0.01194]
[1763353237017,0.323,95209.0,95201.0,0.09406207]
[1763353238205,0.323,95209.0,95202.0,0.09406207]
[1763353239695,0.32715,95211.0,95202.0,0.09506207]
[1763353240556,0.32715,95211.0,95202.0,0.09406207]
[1763353240769,0.32715,95211.0,95202.0,0.09506207]
[1763353241702,0.02438,95210.0,95202.0,0.09606207]
[1763353241901,0.02438,95210.0,95202.0,0.09506207]
[1763353241902,0.03653405,95210.0,95202.0,0.09506207]
[1763353242106,0.02438,95210.0,95202.0,0.09506207]
[1763353242752,0.02438,95210.0,95202.0,0.09406207]
[1763353243078,0.02438,95210.0,95202.0,0.09506207]
[1763353243280,0.00415,95211.0,95202.0,0.09506207]
[1763353243404,0.32715,95211.0,95202.0,0.09406207]
[1763353244015,0.39738043,95211.0,95202.0,0.09406207]
[1763353244665,0.32715,95211.0,95202.0,0.09406207]
[1763353245129,0.01957115,95210.0,95202.0,0.09406207]
[1763353245331,0.32715,95211.0,95202.0,0.09406207]
[1763353245529,0.323,95209.0,95202.0,0.09406207]
[1763353245889,0.33949335,95209.0,95202.0,0.09406207]
[1763353246224,0.323,95209.0,95202.0,0.09406207]
[1763353248923,0.323,95209.0,95202.0,0.09606207]
[1763353249127,0.01649336,95208.0,95202.0,0.09606207]
[1763353249302,0.01649336,95208.0,95203.0,0.0229]
[1763353249483,0.01649336,95208.0,95207.0,0.01587]
[1763353249885,0.01649336,95208.0,95207.0,0.03877]
[1763353250326,0.323,95219.0,95207.0,0.03877]
[1763353250527,0.323,95219.0,95218.0,0.09406207]
[1763353250727,0.34258317,95219.0,95218.0,0.09406207]
[1763353251507,0.01958317,95219.0,95218.0,0.09406207]
[1763353251720,0.323,95227.0,95218.0,0.10993207]
[1763353251893,0.01958381,95224.0,95218.0,0.09406207]
[1763353252242,0.01958381,95223.0,95218.0,0.09406207]
[1763353252444,0.01635,95219.0,95204.0,0.012]
[1763353252640,0.323,95213.0,95204.0,0.012]
[1763353253363,0.01649243,95211.0,95204.0,0.012]
[1763353255354,0.01649243,95211.0,95204.0,0.014]
[1763353255577,0.49148,95210.0,95204.0,0.014]
[1763353255752,0.49148,95210.0,95204.0,0.012]
[1763353255950,0.49148,95210.0,95204.0,0.013]
[1763353256161,0.01635,95205.0,95204.0,0.002]
[1763353256322,0.01635,95205.0,95200.0,0.00044346]
[1763353256544,0.02251,95201.0,95200.0,0.00044346]
[1763353256743,0.05186402,95201.0,95200.0,0.00044346]
[1763353256944,0.48075047,95201.0,95200.0,0.00044346]
[1763353257183,0.50329198,95201.0,95200.0,0.00044346]
[1763353257597,0.42223553,95201.0,95200.0,0.00044346]
[1763353257818,0.38991015,95201.0,95200.0,0.00044346]
[1763353259225,0.38991015,95201.0,95200.0,0.00144346]
[1763353260210,0.38991015,95201.0,95200.0,0.00044346]
[1763353262248,0.37034,95201.0,95200.0,0.00044346]
[1763353262469,0.408574,95201.0,95200.0,0.00044346]
[1763353263431,0.42507046,95201.0,95200.0,0.00044346]
[1763353264104,0.00616,95201.0,95200.0,0.00044346]
[1763353264233,0.27883587,95210.0,95200.0,0.01631346]
[1763353264428,0.27883587,95210.0,95203.0,0.09406207]
[1763353264774,0.01635,95201.0,95200.0,0.00044346]
[1763353265194,0.04118,95201.0,95200.0,0.00044346]
[1763353265542,0.20966,95201.0,95200.0,0.00044346]
[1763353265943,0.12542,95201.0,95200.0,0.00044346]
[1763353266555,0.10059,95201.0,95200.0,0.00044346]
[1763353267442,0.42359,95201.0,95200.0,0.00044346]
[1763353268489,0.323,95201.0,95200.0,0.00044346]
[1763353269102,0.323,95201.0,95200.0,0.01631346]
[1763353269408,0.323,95201.0,95200.0,0.03921346]
[1763353269605,0.39648,95201.0,95200.0,0.10044346]
[1763353269805,0.39648,95201.0,95200.0,0.00044346]
[1763353270310,0.39648,95201.0,95200.0,0.00144346]
[1763353270690,0.41297563,95201.0,95200.0,0.00044346]
[1763353271111,0.39648,95201.0,95200.0,0.00044346]
[1763353271357,0.4325083,95201.0,95200.0,0.00044346]
[1763353271507,0.4160127,95201.0,95200.0,0.00044346]
[1763353274439,0.4325095,95201.0,95200.0,0.00044346]
[1763353274843,0.4002095,95201.0,95200.0,0.00044346]
[1763353275019,0.4002095,95201.0,95200.0,3.46e-06]
[1763353275235,0.4227029,95201.0,95200.0,3.46e-06]
[1763353275437,0.5911829,95201.0,95200.0,3.46e-06]
[1763353275650,0.5069429,95201.0,95200.0,3.46e-06]
[1763353275846,0.56006919,95201.0,95200.0,3.46e-06]
[1763353276559,0.0997029,95201.0,95200.0,3.46e-06]
[1763353276760,0.0772095,95201.0,95200.0,3.46e-06]
[1763353280290,0.08142284,95201.0,95200.0,3.46e-06]
[1763353280953,0.40442284,95201.0,95200.0,3.46e-06]
[1763353281305,0.42690322,95201.0,95200.0,3.46e-06]
[1763353281502,0.47082554,95201.0,95200.0,3.46e-06]
[1763353282729,0.47082554,95201.0,95171.0,0.002]
[1763353282891,0.01659,95194.0,95171.0,0.002]
[1763353283074,0.05971219,95194.0,95171.0,0.002]
[1763353285415,0.55540578,95194.0,95171.0,0.002]
[1763353285630,0.60790775,95194.0,95171.0,0.002]
[1763353286101,0.61768221,95194.0,95171.0,0.002]
[1763353286974,0.44920221,95194.0,95171.0,0.002]
[1763353288453,0.46569984,95194.0,95171.0,0.002]
[1763353289358,0.323,95180.0,95171.0,0.002]
[1763353289560,0.02522,95172.0,95171.0,0.002]
[1763353289705,0.04474219,95172.0,95171.0,0.002]
[1763353289906,0.06834219,95172.0,95171.0,0.0026054]
[1763353290816,0.06878587,95172.0,95171.0,0.0026054]
[1763353291031,0.06878587,95172.0,95130.0,0.01039999]
[1763353291032,0.37258,95171.0,95130.0,0.0004]
[1763353291244,0.323,95159.0,95147.0,0.09406207]
[1763353291433,0.01952219,95158.0,95147.0,0.09406207]
[1763353291627,0.01659,95148.0,95147.0,0.09406207]
[1763353292055,0.05059369,95148.0,95147.0,0.09406207]
[1763353292228,0.07011247,95148.0,95134.0,0.1]
[1763353292431,0.323,95142.0,95134.0,0.1]
[1763353293354,0.323,95143.0,95134.0,0.101]
[1763353293578,0.32344368,95143.0,95134.0,0.101]
[1763353293751,0.00044368,95143.0,95142.0,0.02867]
[1763353294978,0.00044368,95143.0,95135.0,0.01225]
[1763353295416,0.08428,95142.0,95135.0,0.01225]
[1763353295618,0.16856,95142.0,95141.0,0.1]
[1763353295816,0.10118037,95142.0,95141.0,0.1]
[1763353296045,0.08428,95142.0,95141.0,0.1]
[1763353296468,0.00044368,95143.0,95141.0,0.1]
[1763353296669,0.01659,95142.0,95141.0,0.1]
[1763353296864,0.01659,95142.0,95141.0,0.10182599]
[1763353297120,0.04019,95142.0,95141.0,0.10182599]
[1763353297329,0.0596826,95142.0,95141.0,0.00182599]
[1763353297565,0.00044368,95143.0,95141.0,0.00182599]
[1763353297735,0.00044368,95143.0,95142.0,0.09406207]
[1763353297986,0.04019,95142.0,95141.0,0.002]
[1763353298191,0.04019,95142.0,95130.0,0.0004]
[1763353298192,0.05967752,95142.0,95130.0,0.0004]
[1763353298388,0.05967752,95142.0,95121.0,0.09406207]
[1763353298389,0.323,95129.0,95121.0,0.09406207]
[1763353298592,0.323,95129.0,95121.0,0.19406207]
[1763353298738,0.01659,95122.0,95118.0,0.1]
[1763353298940,0.01659,95122.0,95119.0,0.09406207]
[1763353299157,0.02861,95120.0,95108.0,0.1]
[1763353299360,0.63044587,95120.0,95119.0,0.09406207]
[1763353299592,0.37521,95120.0,95119.0,0.09406207]
[1763353300724,0.01202,95160.0,95119.0,0.09406207]
[1763353301057,0.27883587,95140.0,95119.0,0.09406207]
[1763353301252,0.01202,95133.0,95119.0,0.09406207]
[1763353301452,0.323,95129.0,95119.0,0.19406207]
[1763353301937,0.0165028,95127.0,95121.0,0.1]
[1763353302628,0.0165028,95127.0,95121.0,0.2]
[1763353302965,0.01659,95122.0,95121.0,0.2]
[1763353303188,0.05455928,95122.0,95121.0,0.001]
[1763353303392,0.09762911,95122.0,95121.0,0.00237681]
[1763353303593,0.01659,95122.0,95121.0,0.10237681]
[1763353303743,0.323,95126.0,95121.0,0.10237681]
[1763353303950,0.01947182,95125.0,95121.0,0.101]
[1763353304146,0.01947182,95124.0,95121.0,0.1]
[1763353304347,0.0165028,95127.0,95122.0,0.1]
[1763353304348,0.0194685,95123.0,95122.0,0.1]
[1763353304727,0.0360585,95123.0,95122.0,0.1]
[1763353305447,0.5276185,95123.0,95122.0,0.1]
[1763353305678,0.5276185,95123.0,95122.0,0.101]
[1763353305876,0.5276185,95123.0,95122.0,0.102]
[1763353306105,0.40728,95123.0,95122.0,0.102]
[1763353306425,0.323,95123.0,95122.0,0.102]
[1763353306803,0.36252,95123.0,95122.0,0.102]
[1763353306984,0.38198287,95123.0,95122.0,0.102]
[1763353307913,0.38198287,95123.0,95122.0,0.002]
[1763353308498,0.323,95122.0,95107.0,0.1]
[1763353308683,0.60183587,95120.0,95119.0,0.09406207]
[1763353308879,0.34246287,95120.0,95119.0,0.09406207]
[1763353309078,0.35817287,95120.0,95119.0,0.09406207]
[1763353309292,0.38198287,95120.0,95119.0,0.09406207]
[1763353309481,0.38198287,95120.0,95091.0,0.002]
[1763353309482,0.323,95119.0,95091.0,0.002]
[1763353309681,0.01571,95103.0,95093.0,0.09406207]
[1763353309892,0.01183,95102.0,95093.0,0.09406207]
[1763353310904,0.01227313,95102.0,95093.0,0.09406207]
[1763353311542,0.01571,95094.0,95093.0,0.09506207]
[1763353312027,0.02381,95101.0,95093.0,0.09506207]
[1763353312169,0.01650736,95094.0,95093.0,0.09506207]
[1763353312603,0.01227313,95102.0,95093.0,0.09506207]
[1763353312806,0.01227313,95102.0,95094.0,0.14341874]
[1763353312807,0.00044313,95102.0,95094.0,0.14341874]
[1763353313255,0.01183,95145.0,95121.0,0.04341874]
[1763353313448,0.01946891,95144.0,95131.0,0.09406207]
[1763353313653,0.01946891,95143.0,95131.0,0.09406207]
[1763353313851,0.01946891,95142.0,95141.0,0.1]
[1763353314052,0.05271259,95145.0,95141.0,0.1]
[1763353314053,0.01946891,95144.0,95141.0,0.1]
[1763353314921,0.01571,95142.0,95141.0,0.1]
[1763353315119,0.03517891,95142.0,95141.0,0.10182599]
[1763353315541,0.5433221,95142.0,95141.0,0.10182599]
[1763353315740,0.01650319,95142.0,95141.0,0.10182599]
[1763353316355,0.01183,95154.0,95141.0,0.10182599]
[1763353316551,0.01183,95154.0,95153.0,0.09406207]
[1763353316796,0.03131926,95154.0,95153.0,0.09455767]
[1763353317001,0.01062273,95178.0,95153.0,0.09455767]
[1763353317151,0.35135594,95170.0,95168.0,0.09406207]
[1763353317331,0.01949203,95169.0,95168.0,0.09406207]
[1763353317718,0.03520203,95169.0,95168.0,0.09419531]
[1763353317848,0.05901203,95169.0,95168.0,0.09419531]
[1763353318690,0.03520203,95169.0,95168.0,0.09419531]
[1763353319041,0.05901203,95169.0,95168.0,0.09419531]
[1763353319239,0.03520203,95169.0,95168.0,0.09419531]
[1763353319680,0.05901203,95169.0,95168.0,0.09419531]
[1763353320012,0.06609623,95169.0,95168.0,0.09419531]
[1763353320198,0.01949203,95169.0,95168.0,0.09419531]
[1763353320497,0.35135594,95180.0,95168.0,0.09419531]
[1763353320808,0.3425062,95179.0,95168.0,0.09419531]
[1763353321002,0.0195062,95178.0,95168.0,0.09419531]
[1763353321244,0.0195062,95177.0,95168.0,0.09419531]
[1763353321379,0.0195062,95176.0,95168.0,0.09519531]
[1763353321582,0.0195062,95175.0,95168.0,0.09619531]
[1763353321764,0.02381,95178.0,95168.0,0.09419531]
[1763353321966,0.01949316,95177.0,95168.0,0.09419531]
[1763353322214,0.02381,95189.0,95168.0,0.09419531]
[1763353322215,0.02381,95189.0,95170.0,0.1]
[1763353322375,0.01949253,95188.0,95170.0,0.1]
[1763353322607,0.01571,95171.0,95170.0,0.05]
[1763353322775,0.03952,95171.0,95168.0,0.00013324]
[1763353322976,0.01571,95169.0,95168.0,0.00013324]
[1763353323183,0.05181431,95169.0,95168.0,0.00013324]
[1763353323400,0.08618431,95169.0,95168.0,0.00013324]
[1763353324004,0.40918431,95169.0,95168.0,0.00013324]
[1763353324203,0.43262188,95169.0,95168.0,0.00013324]
[1763353324406,0.43362188,95169.0,95168.0,0.00013324]
[1763353325022,0.43162188,95169.0,95168.0,0.00013324]
[1763353325221,0.43262188,95169.0,95168.0,0.00013324]
[1763353325425,0.00999999,95150.0,95123.0,0.09406207]
[1763353325662,0.323,95132.0,95123.0,0.09406207]
[1763353325870,0.00915,95124.0,95123.0,0.09406207]